[Event "Early-Titled-Tuesday-Blitz-April-23-2024"]
[Site "Chess.com"]
[Date "2024.04.23"]
[Round "7"]
[White "klifus"]
[Black "BenchGM"]
[Result "1-0"]
[WhiteElo "2110"]
[BlackElo "2246"]
[TimeControl "180+1"]
[EndTime "9:20:38 PDT"]
[Termination "klifus won by checkmate"]

1. e4 {[%clk 0:03:00.9]} 1... c5 {[%clk 0:02:59.6]} 2. Nf3 {[%clk 0:02:59.6]}
2... e6 {[%clk 0:02:59.7]} 3. d3 {[%clk 0:02:58.7]} 3... Nc6 {[%clk 0:02:57]} 4.
Nbd2 {[%clk 0:02:58]} 4... d5 {[%clk 0:02:52.9]} 5. g3 {[%clk 0:02:57.6]} 5...
Nf6 {[%clk 0:02:49.2]} 6. Bg2 {[%clk 0:02:56.7]} 6... d4 {[%clk 0:02:39.4]} 7.
O-O {[%clk 0:02:55.6]} 7... e5 {[%clk 0:02:39.5]} 8. h3 {[%clk 0:02:48.2]} 8...
h6 {[%clk 0:02:32]} 9. Nh4 {[%clk 0:02:47.1]} 9... Be6 {[%clk 0:02:25.4]} 10. a3
{[%clk 0:02:35.7]} 10... Be7 {[%clk 0:02:04.8]} 11. f4 {[%clk 0:02:28.7]} 11...
exf4 {[%clk 0:01:58.6]} 12. gxf4 {[%clk 0:02:26.3]} 12... g5 {[%clk 0:01:22.8]}
13. Nf5 {[%clk 0:02:19.6]} 13... gxf4 {[%clk 0:01:19.1]} 14. Rxf4 {[%clk
0:02:07.5]} 14... Rg8 {[%clk 0:01:14.2]} 15. Nxe7 {[%clk 0:01:52.9]} 15... Qxe7
{[%clk 0:01:10]} 16. Kh1 {[%clk 0:01:48.8]} 16... O-O-O {[%clk 0:01:01.7]} 17.
Nf3 {[%clk 0:01:30.5]} 17... Nh5 {[%clk 0:00:58.5]} 18. Rh4 {[%clk 0:01:29.4]}
18... Ng3+ {[%clk 0:00:42.7]} 19. Kh2 {[%clk 0:01:28.7]} 19... Ne5 {[%clk
0:00:36.3]} 20. Rf4 {[%clk 0:00:57.6]} 20... Nxf3+ {[%clk 0:00:15.4]} 21. Qxf3
{[%clk 0:00:54.7]} 21... Rg6 {[%clk 0:00:15]} 22. Bd2 {[%clk 0:00:50.9]} 22...
Rdg8 {[%clk 0:00:15]} 23. Rg1 {[%clk 0:00:49.8]} 23... Qg5 {[%clk 0:00:13.4]}
24. Be1 {[%clk 0:00:32.9]} 24... Nh5 {[%clk 0:00:13.2]} 25. Rf5 {[%clk
0:00:28.8]} 25... Bxf5 {[%clk 0:00:13]} 26. exf5 {[%clk 0:00:28.3]} 26... Rd6
{[%clk 0:00:11.2]} 27. Qxb7+ {[%clk 0:00:27.1]} 27... Kd8 {[%clk 0:00:10.4]} 28.
Ba5+ {[%clk 0:00:23.1]} 28... Ke8 {[%clk 0:00:09.6]} 29. Qb8+ {[%clk 0:00:17.9]}
29... Rd8 {[%clk 0:00:08.4]} 30. Qe5+ {[%clk 0:00:16.6]} 30... Qe7 {[%clk
0:00:07.8]} 31. Qxe7+ {[%clk 0:00:14.1]} 31... Kxe7 {[%clk 0:00:08.3]} 32. Re1+
{[%clk 0:00:13]} 32... Kd7 {[%clk 0:00:07.6]} 33. Bxd8 {[%clk 0:00:12.7]} 33...
Kxd8 {[%clk 0:00:07.6]} 34. Bf3 {[%clk 0:00:12.6]} 34... Nf4 {[%clk 0:00:07.3]}
35. Re5 {[%clk 0:00:11.3]} 35... Re8 {[%clk 0:00:05.4]} 36. Rxe8+ {[%clk
0:00:09.5]} 36... Kxe8 {[%clk 0:00:05.3]} 37. Kg3 {[%clk 0:00:09.4]} 37... c4
{[%clk 0:00:03.2]} 38. Kxf4 {[%clk 0:00:08.2]} 38... cxd3 {[%clk 0:00:02.6]} 39.
cxd3 {[%clk 0:00:08]} 39... Ke7 {[%clk 0:00:02.8]} 40. Ke4 {[%clk 0:00:08.1]}
40... Kf6 {[%clk 0:00:03.2]} 41. Kxd4 {[%clk 0:00:08.2]} 41... Kxf5 {[%clk
0:00:03.7]} 42. b4 {[%clk 0:00:06.8]} 42... Kf4 {[%clk 0:00:04.2]} 43. b5 {[%clk
0:00:07]} 43... Kxf3 {[%clk 0:00:04.4]} 44. a4 {[%clk 0:00:07.1]} 44... f5
{[%clk 0:00:04.4]} 45. a5 {[%clk 0:00:07.3]} 45... Kg3 {[%clk 0:00:03.8]} 46. b6
{[%clk 0:00:07.6]} 46... axb6 {[%clk 0:00:03.6]} 47. axb6 {[%clk 0:00:07.9]}
47... f4 {[%clk 0:00:04.1]} 48. b7 {[%clk 0:00:08.2]} 48... f3 {[%clk
0:00:04.7]} 49. b8=Q+ {[%clk 0:00:08.1]} 49... Kg2 {[%clk 0:00:04.7]} 50. Qg8+
{[%clk 0:00:07.3]} 50... Kf1 {[%clk 0:00:05]} 51. Qg3 {[%clk 0:00:06.2]} 51...
f2 {[%clk 0:00:05.1]} 52. Ke3 {[%clk 0:00:06]} 52... Ke1 {[%clk 0:00:05.5]} 53.
Qxf2+ {[%clk 0:00:05.9]} 53... Kd1 {[%clk 0:00:05.4]} 54. Qd2# {[%clk 0:00:06]}
1-0

[Event "Early-Titled-Tuesday-Blitz-April-23-2024"]
[Site "Chess.com"]
[Date "2024.04.23"]
[Round "7"]
[White "Alexander_Donchenko"]
[Black "AnishOnYoutube"]
[Result "1/2-1/2"]
[WhiteElo "2896"]
[BlackElo "3066"]
[TimeControl "180+1"]
[EndTime "9:20:39 PDT"]
[Termination "Game drawn - insufficient material"]

1. Nf3 {[%clk 0:03:00.9]} 1... d5 {[%clk 0:02:57.6]} 2. b3 {[%clk 0:03:01.3]}
2... Nf6 {[%clk 0:02:51.3]} 3. Bb2 {[%clk 0:03:01.6]} 3... Bf5 {[%clk
0:02:51.6]} 4. g3 {[%clk 0:03:00.2]} 4... c5 {[%clk 0:02:49]} 5. Bg2 {[%clk
0:03:00.3]} 5... Nc6 {[%clk 0:02:49.4]} 6. O-O {[%clk 0:03:00.2]} 6... e6 {[%clk
0:02:49.7]} 7. d3 {[%clk 0:02:58.1]} 7... Bd6 {[%clk 0:02:49.5]} 8. Nbd2 {[%clk
0:02:58.1]} 8... O-O {[%clk 0:02:49.7]} 9. Re1 {[%clk 0:02:56.2]} 9... Bc7
{[%clk 0:02:44.4]} 10. e4 {[%clk 0:02:55.5]} 10... Bg4 {[%clk 0:02:44.9]} 11. h3
{[%clk 0:02:54.8]} 11... Bh5 {[%clk 0:02:45.3]} 12. c3 {[%clk 0:02:47.4]} 12...
dxe4 {[%clk 0:02:10.5]} 13. dxe4 {[%clk 0:02:47.5]} 13... Qe7 {[%clk 0:02:03.7]}
14. Qc2 {[%clk 0:02:46.3]} 14... Rfd8 {[%clk 0:02:03.6]} 15. Rad1 {[%clk
0:02:41.3]} 15... Nd7 {[%clk 0:02:02.7]} 16. a4 {[%clk 0:02:35.7]} 16... Nde5
{[%clk 0:01:56]} 17. Ba3 {[%clk 0:02:16.5]} 17... h6 {[%clk 0:01:07.1]} 18. g4
{[%clk 0:01:52.7]} 18... Bg6 {[%clk 0:01:04.3]} 19. Nxe5 {[%clk 0:01:53.1]}
19... Nxe5 {[%clk 0:00:47.9]} 20. Nf1 {[%clk 0:01:46.9]} 20... Nc6 {[%clk
0:00:32.6]} 21. Bc1 {[%clk 0:01:43.2]} 21... Qf6 {[%clk 0:00:29.5]} 22. Ne3
{[%clk 0:01:34.7]} 22... Bf4 {[%clk 0:00:28.7]} 23. Nc4 {[%clk 0:01:31.8]} 23...
h5 {[%clk 0:00:24.4]} 24. Bxf4 {[%clk 0:01:27.4]} 24... Qxf4 {[%clk 0:00:24.7]}
25. Qc1 {[%clk 0:01:28.2]} 25... Qxc1 {[%clk 0:00:24]} 26. Rxc1 {[%clk
0:01:29.1]} 26... hxg4 {[%clk 0:00:24.4]} 27. hxg4 {[%clk 0:01:29.9]} 27... e5
{[%clk 0:00:24]} 28. Ne3 {[%clk 0:01:28]} 28... Rd2 {[%clk 0:00:22.7]} 29. Nd5
{[%clk 0:01:27.6]} 29... f6 {[%clk 0:00:20.9]} 30. Red1 {[%clk 0:01:26.6]} 30...
Rxd1+ {[%clk 0:00:21.4]} 31. Rxd1 {[%clk 0:01:27.5]} 31... Rd8 {[%clk
0:00:19.9]} 32. Kf1 {[%clk 0:01:07]} 32... Kf8 {[%clk 0:00:20.4]} 33. Ke2 {[%clk
0:01:06.4]} 33... Na5 {[%clk 0:00:18.3]} 34. b4 {[%clk 0:00:46.3]} 34... cxb4
{[%clk 0:00:18.6]} 35. cxb4 {[%clk 0:00:47.2]} 35... Nc6 {[%clk 0:00:19.4]} 36.
Rc1 {[%clk 0:00:42.7]} 36... Rc8 {[%clk 0:00:14.3]} 37. Ke3 {[%clk 0:00:41.7]}
37... Bf7 {[%clk 0:00:12.5]} 38. f4 {[%clk 0:00:39]} 38... exf4+ {[%clk
0:00:12]} 39. Kxf4 {[%clk 0:00:38.4]} 39... Be6 {[%clk 0:00:11.3]} 40. g5 {[%clk
0:00:32.1]} 40... Kf7 {[%clk 0:00:11.3]} 41. gxf6 {[%clk 0:00:32]} 41... gxf6
{[%clk 0:00:12.2]} 42. b5 {[%clk 0:00:27.7]} 42... Ne5 {[%clk 0:00:10.3]} 43.
Rxc8 {[%clk 0:00:27.8]} 43... Bxc8 {[%clk 0:00:10.4]} 44. Ke3 {[%clk 0:00:28.2]}
44... Nc4+ {[%clk 0:00:04.6]} 45. Kd4 {[%clk 0:00:28.4]} 45... Nd6 {[%clk
0:00:05.3]} 46. Bf3 {[%clk 0:00:26.7]} 46... Be6 {[%clk 0:00:04.6]} 47. Bh5+
{[%clk 0:00:26.3]} 47... Kg7 {[%clk 0:00:04.6]} 48. Nc7 {[%clk 0:00:24.8]} 48...
Bb3 {[%clk 0:00:04.5]} 49. a5 {[%clk 0:00:25]} 49... Ba4 {[%clk 0:00:03.6]} 50.
b6 {[%clk 0:00:24]} 50... axb6 {[%clk 0:00:03.9]} 51. axb6 {[%clk 0:00:24.9]}
51... Bc6 {[%clk 0:00:04.7]} 52. Ne6+ {[%clk 0:00:22.2]} 52... Kg8 {[%clk
0:00:04.4]} 53. Nc5 {[%clk 0:00:21.4]} 53... Nc8 {[%clk 0:00:04.4]} 54. e5
{[%clk 0:00:13]} 54... fxe5+ {[%clk 0:00:04.6]} 55. Kxe5 {[%clk 0:00:13.9]}
55... Nxb6 {[%clk 0:00:05.4]} 56. Kd6 {[%clk 0:00:12.9]} 56... Nc4+ {[%clk
0:00:05.5]} 57. Kc7 {[%clk 0:00:13.2]} 57... Ne5 {[%clk 0:00:04.8]} 58. Nxb7
{[%clk 0:00:12.5]} 58... Bxb7 {[%clk 0:00:05.7]} 59. Kxb7 {[%clk 0:00:13.2]}
1/2-1/2

[Event "Early-Titled-Tuesday-Blitz-April-23-2024"]
[Site "Chess.com"]
[Date "2024.04.23"]
[Round "7"]
[White "Seochesspie"]
[Black "Andrey_Klymchuk"]
[Result "1-0"]
[WhiteElo "2899"]
[BlackElo "2691"]
[TimeControl "180+1"]
[EndTime "9:20:40 PDT"]
[Termination "Seochesspie won by resignation"]

1. d4 {[%clk 0:03:00.9]} 1... Nf6 {[%clk 0:02:59.4]} 2. c4 {[%clk 0:03:01]} 2...
c5 {[%clk 0:02:58.9]} 3. Nf3 {[%clk 0:02:59.3]} 3... g6 {[%clk 0:02:58.2]} 4.
Nc3 {[%clk 0:02:58.3]} 4... Bg7 {[%clk 0:02:58.2]} 5. d5 {[%clk 0:02:57.9]} 5...
O-O {[%clk 0:02:56.2]} 6. e4 {[%clk 0:02:57.7]} 6... e6 {[%clk 0:02:56.1]} 7.
Be2 {[%clk 0:02:53.5]} 7... d6 {[%clk 0:02:52.5]} 8. O-O {[%clk 0:02:50.5]} 8...
exd5 {[%clk 0:02:52.4]} 9. cxd5 {[%clk 0:02:45.7]} 9... a6 {[%clk 0:02:51.4]}
10. a4 {[%clk 0:02:45.3]} 10... Bg4 {[%clk 0:02:51.2]} 11. Bf4 {[%clk
0:02:40.1]} 11... Bxf3 {[%clk 0:02:46.2]} 12. Bxf3 {[%clk 0:02:41]} 12... Qe7
{[%clk 0:02:45]} 13. e5 {[%clk 0:02:37.2]} 13... dxe5 {[%clk 0:02:44.9]} 14. d6
{[%clk 0:02:37.5]} 14... Qe6 {[%clk 0:02:44.5]} 15. Re1 {[%clk 0:02:32.7]} 15...
Nbd7 {[%clk 0:02:43]} 16. Bxb7 {[%clk 0:02:28.7]} 16... Ra7 {[%clk 0:02:41.5]}
17. Bf3 {[%clk 0:02:21.1]} 17... Rb8 {[%clk 0:02:35.7]} 18. Qd2 {[%clk
0:02:02.3]} 18... Rb4 {[%clk 0:02:29.4]} 19. Be3 {[%clk 0:01:57.6]} 19... Rd4
{[%clk 0:02:28.1]} 20. Bxd4 {[%clk 0:01:57.7]} 20... cxd4 {[%clk 0:02:28.8]} 21.
Ne4 {[%clk 0:01:49]} 21... Nxe4 {[%clk 0:02:26.7]} 22. Bxe4 {[%clk 0:01:49.3]}
22... Qxd6 {[%clk 0:02:26.5]} 23. Rac1 {[%clk 0:01:46.5]} 23... Nc5 {[%clk
0:02:08]} 24. Bc2 {[%clk 0:01:31.2]} 24... a5 {[%clk 0:02:01.3]} 25. b4 {[%clk
0:01:31.2]} 25... axb4 {[%clk 0:02:00.2]} 26. Qxb4 {[%clk 0:01:31.6]} 26... d3
{[%clk 0:01:49.2]} 27. Bxd3 {[%clk 0:01:28.4]} 27... Rxa4 {[%clk 0:01:35.1]} 28.
Qxc5 {[%clk 0:01:21.6]} 28... Qxd3 {[%clk 0:01:35.2]} 29. Qc8+ {[%clk
0:01:22.1]} 29... Bf8 {[%clk 0:01:35.3]} 30. Rxe5 {[%clk 0:01:16.8]} 30... Rd4
{[%clk 0:01:33.8]} 31. Re8 {[%clk 0:01:08.4]} 31... Qd1+ {[%clk 0:01:32]} 32.
Re1 {[%clk 0:01:08.3]} 32... Qd2 {[%clk 0:01:31.5]} 33. g3 {[%clk 0:01:05.2]}
33... Rd8 {[%clk 0:01:29]} 34. Qc2 {[%clk 0:01:04.5]} 34... Qd5 {[%clk
0:01:25.4]} 35. Rcd1 {[%clk 0:01:04.4]} 35... Qa8 {[%clk 0:01:25.4]} 36. Rxd8
{[%clk 0:01:02.9]} 36... Qxd8 {[%clk 0:01:26.3]} 37. Qc4 {[%clk 0:01:02.8]}
37... Qf6 {[%clk 0:01:25.4]} 38. Qe4 {[%clk 0:00:58.6]} 38... h5 {[%clk
0:01:24.3]} 39. Qe5 {[%clk 0:00:57.4]} 39... Qf3 {[%clk 0:01:18.7]} 40. Qe4
{[%clk 0:00:57.3]} 40... Qf6 {[%clk 0:01:17.8]} 41. Kg2 {[%clk 0:00:57.6]} 41...
Kg7 {[%clk 0:01:16.2]} 42. Qe5 {[%clk 0:00:57.4]} 42... Bd6 {[%clk 0:01:14.1]}
43. Qxf6+ {[%clk 0:00:57.5]} 43... Kxf6 {[%clk 0:01:15]} 44. Rd1 {[%clk
0:00:57.2]} 44... Bc5 {[%clk 0:01:14.1]} 45. Kf3 {[%clk 0:00:57]} 45... Ba7
{[%clk 0:01:14.2]} 46. Rd2 {[%clk 0:00:56.7]} 46... Ke6 {[%clk 0:01:13.8]} 47.
Ke4 {[%clk 0:00:56.6]} 47... Bb6 {[%clk 0:01:13.5]} 48. Rc2 {[%clk 0:00:56.4]}
48... Ba7 {[%clk 0:01:13.1]} 49. Rc6+ {[%clk 0:00:54.9]} 49... Kd7 {[%clk
0:01:13.3]} 50. Rc2 {[%clk 0:00:55]} 50... Ke6 {[%clk 0:01:13.7]} 51. Ra2 {[%clk
0:00:54.3]} 51... Bc5 {[%clk 0:01:13.3]} 52. h3 {[%clk 0:00:54.4]} 52... Kf6
{[%clk 0:01:12.7]} 53. Rc2 {[%clk 0:00:52.4]} 53... Ba7 {[%clk 0:01:12.2]} 54.
Rc6+ {[%clk 0:00:52.1]} 54... Kg7 {[%clk 0:01:10.9]} 55. f3 {[%clk 0:00:52.3]}
55... Bb8 {[%clk 0:01:09.7]} 56. g4 {[%clk 0:00:44.7]} 56... hxg4 {[%clk
0:01:07.7]} 57. hxg4 {[%clk 0:00:45]} 57... Bg3 {[%clk 0:01:06.3]} 58. g5 {[%clk
0:00:41.3]} 58... Kf8 {[%clk 0:01:05.2]} 59. f4 {[%clk 0:00:40.4]} 59... Bh4
{[%clk 0:01:03.7]} 60. Rc1 {[%clk 0:00:34.8]} 60... Kg7 {[%clk 0:01:01.8]} 61.
Kf3 {[%clk 0:00:32.6]} 61... f6 {[%clk 0:01:01.9]} 62. Rc7+ {[%clk 0:00:19.8]}
62... Kg8 {[%clk 0:01:01.6]} 63. f5 {[%clk 0:00:15.9]} 63... gxf5 {[%clk
0:00:59]} 64. g6 {[%clk 0:00:16.3]} 64... Bg5 {[%clk 0:00:59.3]} 65. Rd7 {[%clk
0:00:15.2]} 65... Kf8 {[%clk 0:00:59.4]} 66. Ke2 {[%clk 0:00:15.3]} 66... Kg8
{[%clk 0:00:59.4]} 67. Kd3 {[%clk 0:00:15.5]} 67... Bf4 {[%clk 0:00:55.4]} 68.
Kd4 {[%clk 0:00:15.4]} 68... Be5+ {[%clk 0:00:55.6]} 69. Kd5 {[%clk 0:00:15.7]}
69... Kf8 {[%clk 0:00:55.2]} 70. Ke6 {[%clk 0:00:15.4]} 70... f4 {[%clk
0:00:55.6]} 71. Kf5 {[%clk 0:00:13.7]} 71... f3 {[%clk 0:00:55.6]} 72. g7+
{[%clk 0:00:11.9]} 72... Ke8 {[%clk 0:00:52.9]} 73. Rb7 {[%clk 0:00:10.6]} 1-0

[Event "Early-Titled-Tuesday-Blitz-April-23-2024"]
[Site "Chess.com"]
[Date "2024.04.23"]
[Round "7"]
[White "lupta_robin"]
[Black "Nikolakis2014"]
[Result "1/2-1/2"]
[WhiteElo "2591"]
[BlackElo "2740"]
[TimeControl "180+1"]
[EndTime "9:20:45 PDT"]
[Termination "Game drawn by repetition"]

1. b3 {[%clk 0:03:00.9]} 1... Nf6 {[%clk 0:02:58.3]} 2. Bb2 {[%clk 0:03:00.5]}
2... g6 {[%clk 0:02:58.7]} 3. Bxf6 {[%clk 0:02:59]} 3... exf6 {[%clk 0:02:59]}
4. c4 {[%clk 0:02:59.5]} 4... d5 {[%clk 0:02:56.7]} 5. cxd5 {[%clk 0:02:59.5]}
5... Qxd5 {[%clk 0:02:56.9]} 6. Nc3 {[%clk 0:03:00.1]} 6... Qd8 {[%clk
0:02:55.4]} 7. g3 {[%clk 0:02:57.8]} 7... c6 {[%clk 0:02:55.2]} 8. Bg2 {[%clk
0:02:58.2]} 8... Bg7 {[%clk 0:02:54.1]} 9. e3 {[%clk 0:02:58.4]} 9... f5 {[%clk
0:02:54]} 10. Nf3 {[%clk 0:02:47]} 10... O-O {[%clk 0:02:53.6]} 11. d4 {[%clk
0:02:45.2]} 11... c5 {[%clk 0:02:42.8]} 12. O-O {[%clk 0:02:40.2]} 12... Nc6
{[%clk 0:02:38.8]} 13. Ne2 {[%clk 0:02:28.6]} 13... Re8 {[%clk 0:02:04.9]} 14.
Rc1 {[%clk 0:02:18.8]} 14... cxd4 {[%clk 0:02:04.3]} 15. Nfxd4 {[%clk
0:02:15.6]} 15... Nxd4 {[%clk 0:02:04.5]} 16. Nxd4 {[%clk 0:02:14.9]} 16... Rb8
{[%clk 0:02:04.4]} 17. Nb5 {[%clk 0:02:01.7]} 17... Qa5 {[%clk 0:01:35.4]} 18.
Nc7 {[%clk 0:01:48]} 18... Rf8 {[%clk 0:01:31.9]} 19. a4 {[%clk 0:01:23.6]}
19... Be5 {[%clk 0:01:28.6]} 20. Qc2 {[%clk 0:01:17.8]} 20... Bd7 {[%clk
0:01:08.5]} 21. Rfd1 {[%clk 0:01:05.1]} 21... Bc6 {[%clk 0:01:08.6]} 22. Nd5
{[%clk 0:01:00.2]} 22... Kh8 {[%clk 0:01:02.8]} 23. Qc5 {[%clk 0:00:43.2]} 23...
Qxc5 {[%clk 0:00:58.4]} 24. Rxc5 {[%clk 0:00:44.1]} 24... Rbd8 {[%clk 0:00:58]}
25. Rdc1 {[%clk 0:00:26.1]} 25... Bb2 {[%clk 0:00:54.9]} 26. Rd1 {[%clk
0:00:19.5]} 26... Ba3 {[%clk 0:00:37.2]} 27. Rc2 {[%clk 0:00:18.8]} 27... Rd6
{[%clk 0:00:37.3]} 28. Rcd2 {[%clk 0:00:18.2]} 28... Rfd8 {[%clk 0:00:36.8]} 29.
Rd3 {[%clk 0:00:18.2]} 29... a5 {[%clk 0:00:29.4]} 30. Nf4 {[%clk 0:00:17]}
30... Be4 {[%clk 0:00:26.8]} 31. Rxd6 {[%clk 0:00:15.3]} 31... Rxd6 {[%clk
0:00:26.9]} 32. Rxd6 {[%clk 0:00:15.3]} 32... Bxd6 {[%clk 0:00:27.1]} 33. Bxe4
{[%clk 0:00:15]} 33... fxe4 {[%clk 0:00:27]} 34. Kf1 {[%clk 0:00:10.6]} 34...
Kg7 {[%clk 0:00:25.6]} 35. Nd5 {[%clk 0:00:10.8]} 35... f5 {[%clk 0:00:25.3]}
36. Nb6 {[%clk 0:00:10.4]} 36... Kf6 {[%clk 0:00:24.7]} 37. Nc4 {[%clk
0:00:10.8]} 37... Bc7 {[%clk 0:00:22.3]} 38. h4 {[%clk 0:00:10.7]} 38... h6
{[%clk 0:00:22.1]} 39. Ke2 {[%clk 0:00:11]} 39... g5 {[%clk 0:00:22.3]} 40.
hxg5+ {[%clk 0:00:11.9]} 40... hxg5 {[%clk 0:00:22.6]} 41. Na3 {[%clk
0:00:12.4]} 41... Ke6 {[%clk 0:00:21]} 42. Nc2 {[%clk 0:00:12.3]} 42... Bb6
{[%clk 0:00:20.6]} 43. Kd2 {[%clk 0:00:12.2]} 43... Kd5 {[%clk 0:00:20.8]} 44.
Ke2 {[%clk 0:00:12.2]} 44... Bc5 {[%clk 0:00:21.1]} 45. Kd2 {[%clk 0:00:12.7]}
45... Ke5 {[%clk 0:00:21.2]} 46. Ke2 {[%clk 0:00:13.2]} 46... f4 {[%clk
0:00:21.7]} 47. gxf4+ {[%clk 0:00:13.8]} 47... gxf4 {[%clk 0:00:22.1]} 48. exf4+
{[%clk 0:00:14]} 48... Kxf4 {[%clk 0:00:22.5]} 49. Ne1 {[%clk 0:00:14.2]} 49...
Ke5 {[%clk 0:00:22]} 50. Nc2 {[%clk 0:00:14.7]} 50... Kd5 {[%clk 0:00:20.8]} 51.
Ke1 {[%clk 0:00:15]} 51... Bd6 {[%clk 0:00:20.1]} 52. Ke2 {[%clk 0:00:15.4]}
52... Bf4 {[%clk 0:00:19.7]} 53. Ke1 {[%clk 0:00:15.8]} 53... Kc5 {[%clk
0:00:20]} 54. Ke2 {[%clk 0:00:16.2]} 54... Kd5 {[%clk 0:00:20.3]} 55. Ke1 {[%clk
0:00:16.4]} 55... b6 {[%clk 0:00:20.8]} 56. Ke2 {[%clk 0:00:17]} 56... Bg5
{[%clk 0:00:21]} 57. Ke1 {[%clk 0:00:17.1]} 57... Be7 {[%clk 0:00:18.5]} 58. Ke2
{[%clk 0:00:17.4]} 58... Bc5 {[%clk 0:00:18.8]} 59. Ke1 {[%clk 0:00:17.6]} 59...
Ke5 {[%clk 0:00:19.1]} 60. Ke2 {[%clk 0:00:18.2]} 60... Kf4 {[%clk 0:00:19.6]}
61. Ne1 {[%clk 0:00:17.9]} 61... Bb4 {[%clk 0:00:18]} 62. Nc2 {[%clk 0:00:18.2]}
62... Bc5 {[%clk 0:00:18.4]} 63. Ne1 {[%clk 0:00:17.9]} 63... Ke5 {[%clk
0:00:18.1]} 64. Nc2 {[%clk 0:00:18.1]} 64... Kd5 {[%clk 0:00:18.5]} 65. Ke1
{[%clk 0:00:18.2]} 65... Bd4 {[%clk 0:00:18]} 66. Ke2 {[%clk 0:00:18.3]} 66...
Bc5 {[%clk 0:00:17.6]} 1/2-1/2

[Event "Early-Titled-Tuesday-Blitz-April-23-2024"]
[Site "Chess.com"]
[Date "2024.04.23"]
[Round "7"]
[White "Fandorine"]
[Black "Jospem"]
[Result "1-0"]
[WhiteElo "2926"]
[BlackElo "3069"]
[TimeControl "180+1"]
[EndTime "9:20:51 PDT"]
[Termination "Fandorine won by checkmate"]

1. e4 {[%clk 0:03:00.9]} 1... c5 {[%clk 0:02:59.5]} 2. Nf3 {[%clk 0:02:58.8]}
2... d6 {[%clk 0:03:00]} 3. d4 {[%clk 0:02:58.8]} 3... cxd4 {[%clk 0:03:00.9]}
4. Nxd4 {[%clk 0:02:59.1]} 4... a6 {[%clk 0:03:01.8]} 5. c4 {[%clk 0:02:55.4]}
5... Nf6 {[%clk 0:03:01.6]} 6. Nc3 {[%clk 0:02:55.4]} 6... e6 {[%clk 0:03:02.3]}
7. Be3 {[%clk 0:02:53.6]} 7... b6 {[%clk 0:03:02.8]} 8. f3 {[%clk 0:02:52]} 8...
Bb7 {[%clk 0:03:02.8]} 9. Qd2 {[%clk 0:02:52.5]} 9... Be7 {[%clk 0:02:58]} 10.
g4 {[%clk 0:02:52.7]} 10... Nfd7 {[%clk 0:02:55.5]} 11. O-O-O {[%clk 0:02:51.5]}
11... Nc6 {[%clk 0:02:55.3]} 12. h4 {[%clk 0:02:51.4]} 12... Rc8 {[%clk
0:02:55.1]} 13. Kb1 {[%clk 0:02:51]} 13... Nce5 {[%clk 0:02:52.7]} 14. g5 {[%clk
0:02:40]} 14... Nxc4 {[%clk 0:02:44.4]} 15. Bxc4 {[%clk 0:02:39.5]} 15... Rxc4
{[%clk 0:02:45.3]} 16. h5 {[%clk 0:02:39.8]} 16... Qc8 {[%clk 0:01:56]} 17. g6
{[%clk 0:02:32.2]} 17... Nf6 {[%clk 0:01:56]} 18. gxf7+ {[%clk 0:01:55.8]} 18...
Kxf7 {[%clk 0:01:56.9]} 19. Rdg1 {[%clk 0:01:55.7]} 19... Rg8 {[%clk 0:01:54.1]}
20. Ka1 {[%clk 0:01:53.4]} 20... b5 {[%clk 0:01:52.4]} 21. Nce2 {[%clk
0:01:47.6]} 21... g6 {[%clk 0:01:31.1]} 22. hxg6+ {[%clk 0:01:39.6]} 22... hxg6
{[%clk 0:01:32]} 23. Bg5 {[%clk 0:01:17.5]} 23... Rg7 {[%clk 0:00:50.9]} 24. Nf4
{[%clk 0:01:00]} 24... Rxd4 {[%clk 0:00:50.6]} 25. Qxd4 {[%clk 0:00:57.5]} 25...
e5 {[%clk 0:00:51.3]} 26. Qd3 {[%clk 0:00:47.3]} 26... exf4 {[%clk 0:00:51.3]}
27. Rc1 {[%clk 0:00:48]} 27... Qd8 {[%clk 0:00:42.9]} 28. Qb3+ {[%clk
0:00:45.9]} 28... d5 {[%clk 0:00:38.9]} 29. Bxf4 {[%clk 0:00:34.4]} 29... Ba8
{[%clk 0:00:19.8]} 30. Rc7 {[%clk 0:00:33]} 30... Nh5 {[%clk 0:00:12.3]} 31. Be5
{[%clk 0:00:28.4]} 31... Rg8 {[%clk 0:00:12.8]} 32. f4 {[%clk 0:00:24.9]} 32...
Ke8 {[%clk 0:00:07.2]} 33. Rhc1 {[%clk 0:00:22.8]} 33... Kf7 {[%clk 0:00:06.9]}
34. Ra7 {[%clk 0:00:20.2]} 34... Re8 {[%clk 0:00:05.3]} 35. Rxa6 {[%clk
0:00:14.5]} 35... Nf6 {[%clk 0:00:03.9]} 36. Bxf6 {[%clk 0:00:07.2]} 36... Bxf6
{[%clk 0:00:04.8]} 37. e5 {[%clk 0:00:07.4]} 37... Be7 {[%clk 0:00:05.5]} 38.
Qh3 {[%clk 0:00:06.7]} 38... Rg8 {[%clk 0:00:05.6]} 39. Qe6+ {[%clk 0:00:06.2]}
39... Kf8 {[%clk 0:00:06.2]} 40. Rc8 {[%clk 0:00:06]} 40... Qxc8 {[%clk
0:00:06.3]} 41. Qxc8+ {[%clk 0:00:06.1]} 41... Kg7 {[%clk 0:00:07.2]} 42. Rxg6+
{[%clk 0:00:06.1]} 42... Kxg6 {[%clk 0:00:07.2]} 43. Qxg8+ {[%clk 0:00:06.7]}
43... Kf5 {[%clk 0:00:07.5]} 44. Qxa8 {[%clk 0:00:07.4]} 44... Kxf4 {[%clk
0:00:08.4]} 45. Qxd5 {[%clk 0:00:07.6]} 45... Bc5 {[%clk 0:00:09.1]} 46. Qxc5
{[%clk 0:00:07.6]} 46... b4 {[%clk 0:00:09.3]} 47. Qxb4+ {[%clk 0:00:08]} 47...
Ke3 {[%clk 0:00:09.7]} 48. a3 {[%clk 0:00:08.9]} 48... Kd3 {[%clk 0:00:10.6]}
49. a4 {[%clk 0:00:09.3]} 49... Kc2 {[%clk 0:00:11.5]} 50. a5 {[%clk 0:00:09.7]}
50... Kd1 {[%clk 0:00:12.4]} 51. a6 {[%clk 0:00:09.9]} 51... Kc2 {[%clk
0:00:13.3]} 52. e6 {[%clk 0:00:10.4]} 52... Kd1 {[%clk 0:00:14.2]} 53. e7 {[%clk
0:00:10.9]} 53... Kc2 {[%clk 0:00:15.1]} 54. a7 {[%clk 0:00:11]} 54... Kd1
{[%clk 0:00:16]} 55. Qb8 {[%clk 0:00:11.3]} 55... Kc2 {[%clk 0:00:16.9]} 56. b4
{[%clk 0:00:11.7]} 56... Kd1 {[%clk 0:00:17.8]} 57. b5 {[%clk 0:00:12.3]} 57...
Kc2 {[%clk 0:00:18.7]} 58. b6 {[%clk 0:00:12.8]} 58... Kb3 {[%clk 0:00:01.1]}
59. b7 {[%clk 0:00:13.7]} 59... Ka3 {[%clk 0:00:02]} 60. Kb1 {[%clk 0:00:12.5]}
60... Ka4 {[%clk 0:00:02.9]} 61. Qf4+ {[%clk 0:00:12.3]} 61... Ka5 {[%clk
0:00:03.8]} 62. b8=Q {[%clk 0:00:11.5]} 62... Ka6 {[%clk 0:00:04.7]} 63. a8=Q#
{[%clk 0:00:11.7]} 1-0